[Event "ETCC Open 2023"]
[Site "Budva"]
[Date "2023.11.14"]
[Round "4.67"]
[White "Pecurica, Milos"]
[Black "Iordachescu, Viorel"]
[Result "1/2-1/2"]
[ECO "B14"]
[WhiteElo "2342"]
[BlackElo "2586"]
[Annotator "ChessBase"]
[PlyCount "107"]
[EventDate "2023.11.10"]
[EventType "team-tourn"]
[EventCountry "MNE"]
[SourceTitle "playchess.com"]
[Source "ChessBase"]
[SourceQuality "1"]
[WhiteTeam "Montenegro"]
[BlackTeam "Moldova"]
[WhiteTeamCountry "MNE"]
[BlackTeamCountry "MDA"]
[TimeControl "40/5400+30:1800+30"]

1. e4 {[%emt 0:04:58]} c6 {[%emt 0:00:45]} 2. d4 {[%emt 0:00:08]} d5 {[%emt 0:00:07]} 3. exd5 {[%emt 0:00:11]} cxd5 {[%emt 0:00:09]} 4. c4 {[%emt 0:00:04]} Nf6 {[%emt 0:00:40]} 5. Nc3 {[%emt 0:00:06]} g6 {[%emt 0:00:17]} 6. Qb3 {[%emt 0:00:13]} Bg7 {[%emt 0:00:12]} 7. cxd5 {[%emt 0:00:13]} O-O {[%emt 0:00:09]} 8. Be2 {[%emt 0:00:11]} Na6 {[%emt 0:00:57]} 9. Bf3 {[%emt 0:00:32]} b5 {[%emt 0:00:26]} 10. a3 {[%emt 0:15:24]} Rb8 {[%emt 0:01:27]} 11. Bf4 {[%emt 0:00:40]} Rb6 {[%emt 0:05:44]} 12. Nge2 {[%emt 0:02:03]} b4 {[%emt 0:13:14]} 13. Na4 {[%emt 0:04:27]} Rb5 {[%emt 0:02:04]} 14. Nec3 {[%emt 0:13:45]} Rb7 {[%emt 0:02:20]} 15. axb4 {[%emt 0:11:31]} Nxb4 {[%emt 0:01:00]} 16. Qd1 {[%emt 0:01:54]} Nfxd5 {[%emt 0:01:21]} 17. Bg3 {[%emt 0:03:41]} e6 {[%emt 0:18:01]} 18. O-O {[%emt 0:02:18]} Nc6 {[%emt 0:00:50]} 19. Nxd5 {[%emt 0:07:36]} exd5 {[%emt 0:00:07]} 20. Be5 {[%emt 0:00:58]} Nxe5 {[%emt 0:07:46]} 21. dxe5 {[%emt 0:00:02]} Bxe5 {[%emt 0:00:25]} 22. Qxd5 {[%emt 0:01:30]} Qf6 {[%emt 0:00:52]} 23. Nc5 {[%emt 0:02:53]} Re7 {[%emt 0:00:26]} 24. Ra4 {[%emt 0:06:45]} Bxb2 {[%emt 0:01:48]} 25. Qa2 {[%emt 0:02:39]} Bd4 {[%emt 0:03:10]} 26. Ne4 {[%emt 0:01:17]} Qe5 {[%emt 0:00:59]} 27. Qd2 {[%emt 0:04:00]} Bb6 {[%emt 0:06:23]} 28. Qh6 {[%emt 0:01:12]} Bf5 {[%emt 0:03:28]} 29. Rd1 {[%emt 0:03:25]} Rfe8 {[%emt 0:03:22]} 30. Qh4 {[%emt 0:00:56]} Kg7 {[%emt 0:07:47]} 31. g3 {[%emt 0:01:01]} Rd8 {[%emt 0:01:42]} 32. Re1 {[%emt 0:02:08]} h6 {[%emt 0:04:53]} 33. Re2 {[%emt 0:00:26]} Red7 {[%emt 0:00:45]} 34. g4 {[%emt 0:02:12]} Bxe4 {[%emt 0:01:51]} 35. Raxe4 {[%emt 0:00:07]} Rd1+ {[%emt 0:01:10]} 36. Kg2 {[%emt 0:00:10]} Qa1 {[%emt 0:00:23]} 37. Kh3 {[%emt 0:01:09]} R8d3 {[%emt 0:01:23]} 38. Rf4 {[%emt 0:00:43]} Rxf3+ {[%emt 0:07:08]} 39. Rxf3 {[%emt 0:00:05]} Rd7 {[%emt 0:00:22]} 40. Kg2 {[%emt 0:01:59]} Bd8 {[%emt 0:02:23]} 41. Qg3 {[%emt 0:31:22]} Bf6 {[%emt 0:30:52]} 42. Rd3 {[%emt 0:01:06]} Rxd3 {[%emt 0:00:00]} 43. Qxd3 {[%emt 0:00:00]} Qa5 {[%emt 0:00:00]} 44. Qc4 {[%emt 0:00:00]} Qg5 {[%emt 0:00:00]} 45. h3 {[%emt 0:00:00]} h5 {[%emt 0:00:00]} 46. Re4 {[%emt 0:00:00]} hxg4 {[%emt 0:00:00]} 47. Rxg4 {[%emt 0:00:00]} Qf5 {[%emt 0:00:00]} 48. Rf4 {[%emt 0:00:00]} Qg5+ {[%emt 0:00:00]} 49. Rg4 {[%emt 0:00:00]} Qf5 {[%emt 0:00:00]} 50. Rf4 {[%emt 0:00:00]} Qg5+ {[%emt 0:00:00]} 51. Kh1 {[%emt 0:00:00]} a5 {[%emt 0:00:00]} 52. h4 {[%emt 0:00:00]} Qe5 {[%emt 0:00:00]} 53. Kg2 {[%emt 0:00:00]} Qe7 {[%emt 0:00:00]} 54. Rg4 {[%emt 0:00:00]} 1/2-1/2

[Event "ETCC Open 2023"]
[Site "Budva"]
[Date "2023.11.14"]
[Round "4.68"]
[White "Lashkin, Jegor"]
[Black "Pobor, Milo"]
[Result "0-1"]
[ECO "D37"]
[WhiteElo "2457"]
[BlackElo "2195"]
[Annotator "ChessBase"]
[PlyCount "70"]
[EventDate "2023.11.10"]
[EventType "team-tourn"]
[EventCountry "MNE"]
[SourceTitle "playchess.com"]
[Source "ChessBase"]
[SourceQuality "1"]
[WhiteTeam "Moldova"]
[BlackTeam "Montenegro"]
[WhiteTeamCountry "MDA"]
[BlackTeamCountry "MNE"]
[TimeControl "40/5400+30:1800+30"]

1. d4 {[%emt 0:00:43]} Nf6 {[%emt 0:04:14]} 2. c4 {[%emt 0:00:13]} e6 {[%emt 0:00:09]} 3. Nf3 {[%emt 0:00:25]} d5 {[%emt 0:00:07]} 4. Nc3 {[%emt 0:00:09]} Be7 {[%emt 0:00:12]} 5. Bf4 {[%emt 0:00:18]} O-O {[%emt 0:00:12]} 6. e3 {[%emt 0:00:05]} c5 {[%emt 0:00:04]} 7. dxc5 {[%emt 0:00:11]} Bxc5 {[%emt 0:00:07]} 8. a3 {[%emt 0:03:01]} Nc6 {[%emt 0:00:29]} 9. Qc2 {[%emt 0:00:16]} Re8 {[%emt 0:00:17]} 10. b4 {[%emt 0:11:57]} e5 {[%emt 0:05:55]} 11. Bg5 {[%emt 0:09:18]} Bd4 {[%emt 0:08:52]} 12. exd4 {[%emt 0:12:11]} exd4+ {[%emt 0:00:09]} 13. Ne2 {[%emt 0:05:45]} h6 {[%emt 0:04:31]} 14. Bh4 {[%emt 0:08:44]} g5 {[%emt 0:01:43]} 15. Bg3 {[%emt 0:14:28]} dxc4 {[%emt 0:01:15]} 16. O-O-O {[%emt 0:00:59]} d3 {[%emt 0:11:30]} 17. Qxc4 {[%emt 0:01:10]} Bf5 {[%emt 0:04:20]} 18. Nc3 {[%emt 0:03:26]} Rc8 {[%emt 0:12:56]} 19. Bxd3 {[%emt 0:01:25]} Nxb4 {[%emt 0:12:42]} 20. Qxb4 {[%emt 0:05:22]} Bxd3 {[%emt 0:00:13]} 21. Kb2 {[%emt 0:01:40]} Re6 {[%emt 0:13:50]} 22. Nd4 {[%emt 0:06:14]} Rb6 {[%emt 0:01:38]} 23. Ndb5 {[%emt 0:07:33]} a6 {[%emt 0:03:58]} 24. Bd6 {[%emt 0:03:44]} Rc4 {[%emt 0:03:21]} 25. Qb3 {[%emt 0:02:02]} axb5 {[%emt 0:00:21]} 26. Bb4 {[%emt 0:00:19]} Qd4 {[%emt 0:00:56]} 27. Rhe1 {[%emt 0:01:08]} Nd5 {[%emt 0:01:23]} 28. Rxd3 {[%emt 0:00:35]} Qxd3 {[%emt 0:01:08]} 29. Rd1 {[%emt 0:00:19]} Nxb4 {[%emt 0:00:58]} 30. Rxd3 {[%emt 0:00:31]} Nxd3+ {[%emt 0:00:08]} 31. Ka1 {[%emt 0:00:39]} Re6 {[%emt 0:04:08]} 32. Nb1 {[%emt 0:00:40]} Nc1 {[%emt 0:00:51]} 33. Qf3 {[%emt 0:00:53]} Re2 {[%emt 0:01:14]} 34. Nd2 {[%emt 0:00:23]} Rxd2 {[%emt 0:00:15]} 35. Qe3 {[%emt 0:00:28]} Nb3+ {[%emt 0:00:11]} 0-1

[Event "ETCC Open 2023"]
[Site "Budva"]
[Date "2023.11.14"]
[Round "4.69"]
[White "Nielsen, Hogni Egilstoft"]
[Black "Kalezic, Blazo"]
[Result "1/2-1/2"]
[ECO "C11"]
[WhiteElo "2387"]
[BlackElo "2401"]
[Annotator "ChessBase"]
[PlyCount "83"]
[EventDate "2023.11.10"]
[EventType "team-tourn"]
[EventCountry "MNE"]
[SourceTitle "playchess.com"]
[Source "ChessBase"]
[SourceQuality "1"]
[WhiteTeam "Faroe Islands"]
[BlackTeam "Montenegro"]
[WhiteTeamCountry "FAI"]
[BlackTeamCountry "MNE"]
[TimeControl "40/5400+30:1800+30"]

1. e4 {[%emt 0:00:07]} e6 {[%emt 0:00:09]} 2. Nf3 {[%emt 0:00:19]} d5 {[%emt 0:00:13]} 3. Nc3 {[%emt 0:00:11]} Nf6 {[%emt 0:00:39]} 4. e5 {[%emt 0:00:26]} Nfd7 {[%emt 0:00:09]} 5. d4 {[%emt 0:00:12]} c5 {[%emt 0:00:18]} 6. dxc5 {[%emt 0:00:25]} Nxc5 {[%emt 0:04:16]} 7. Bd3 {[%emt 0:08:27]} Nc6 {[%emt 0:01:40]} 8. O-O {[%emt 0:00:34]} Be7 {[%emt 0:00:55]} 9. Re1 {[%emt 0:12:09]} Nxd3 {[%emt 0:03:12]} 10. Qxd3 {[%emt 0:07:26]} a6 {[%emt 0:07:49]} 11. Ne2 {[%emt 0:06:59]} Bd7 {[%emt 0:05:26]} 12. Ned4 {[%emt 0:02:31]} g5 {[%emt 0:06:33]} 13. Nxc6 {[%emt 0:07:33]} bxc6 {[%emt 0:01:58]} 14. c4 {[%emt 0:05:40]} g4 {[%emt 0:02:35]} 15. Nd4 {[%emt 0:03:58]} c5 {[%emt 0:01:44]} 16. Nc2 {[%emt 0:04:24]} h5 {[%emt 0:02:03]} 17. cxd5 {[%emt 0:07:57]} Bb5 {[%emt 0:00:29]} 18. Qc3 {[%emt 0:06:26]} Qxd5 {[%emt 0:02:03]} 19. Ne3 {[%emt 0:04:26]} Qd4 {[%emt 0:02:34]} 20. Rd1 {[%emt 0:06:22]} Qe4 {[%emt 0:02:49]} 21. b3 {[%emt 0:05:00]} O-O {[%emt 0:16:00]} 22. Ba3 {[%emt 0:05:35]} Rac8 {[%emt 0:03:40]} 23. Rac1 {[%emt 0:00:32]} h4 {[%emt 0:03:01]} 24. Qc2 {[%emt 0:01:24]} Qf4 {[%emt 0:01:13]} 25. Nc4 {[%emt 0:02:47]} g3 {[%emt 0:04:09]} 26. hxg3 {[%emt 0:00:35]} hxg3 {[%emt 0:00:22]} 27. fxg3 {[%emt 0:00:45]} Qh6 {[%emt 0:00:42]} 28. Qe4 {[%emt 0:00:48]} Bg5 {[%emt 0:00:21]} 29. Rb1 {[%emt 0:00:30]} f5 {[%emt 0:01:09]} 30. exf6 {[%emt 0:00:29]} Bxc4 {[%emt 0:00:40]} 31. bxc4 {[%emt 0:00:28]} Be3+ {[%emt 0:00:40]} 32. Kf1 {[%emt 0:00:01]} Rxf6+ {[%emt 0:07:38]} 33. Ke2 {[%emt 0:00:35]} Rf2+ {[%emt 0:00:34]} 34. Kd3 {[%emt 0:00:11]} Rxa2 {[%emt 0:02:30]} 35. Bb2 {[%emt 0:00:30]} Rd8+ {[%emt 0:05:52]} 36. Ke2 {[%emt 0:00:49]} Rxd1 {[%emt 0:01:27]} 37. Kxd1 {[%emt 0:00:24]} Bd4 {[%emt 0:00:24]} 38. Bc3 {[%emt 0:00:57]} Bxc3 {[%emt 0:03:42]} 39. Rb8+ {[%emt 0:00:17]} Kf7 {[%emt 0:01:28]} 40. Rb7+ {[%emt 0:00:34]} Kg8 {[%emt 0:01:43]} 41. Rb8+ {[%emt 0:01:49]} Kf7 {[%emt 0:00:33]} 42. Rb7+ {[%emt 0:06:32]} 1/2-1/2

[Event "ETCC Open 2023"]
[Site "Budva"]
[Date "2023.11.14"]
[Round "4.70"]
[White "Krivokapic, Marko"]
[Black "Poulsen, Martin"]
[Result "1/2-1/2"]
[ECO "B01"]
[WhiteElo "2386"]
[BlackElo "2291"]
[Annotator "ChessBase"]
[PlyCount "43"]
[EventDate "2023.11.10"]
[EventType "team-tourn"]
[EventCountry "MNE"]
[SourceTitle "playchess.com"]
[Source "ChessBase"]
[SourceQuality "1"]
[WhiteTeam "Montenegro"]
[BlackTeam "Faroe Islands"]
[WhiteTeamCountry "MNE"]
[BlackTeamCountry "FAI"]
[TimeControl "40/5400+30:1800+30"]

1. e4 {[%emt 0:00:07]} d5 {[%emt 0:00:06]} 2. exd5 {[%emt 0:00:13]} Qxd5 {[%emt 0:00:05]} 3. Nf3 {[%emt 0:01:02]} Bg4 {[%emt 0:00:08]} 4. Be2 {[%emt 0:00:24]} Nc6 {[%emt 0:00:06]} 5. d4 {[%emt 0:01:46]} O-O-O {[%emt 0:00:09]} 6. c4 {[%emt 0:01:54]} Qf5 {[%emt 0:00:07]} 7. Be3 {[%emt 0:01:18]} Bxf3 {[%emt 0:00:13]} 8. Bxf3 {[%emt 0:00:10]} Nxd4 {[%emt 0:00:12]} 9. Bxd4 {[%emt 0:02:22]} Qe6+ {[%emt 0:00:05]} 10. Be2 {[%emt 0:01:14]} c5 {[%emt 0:00:06]} 11. O-O {[%emt 0:03:51]} Rxd4 {[%emt 0:04:31]} 12. Qa4 {[%emt 0:05:54]} Qxe2 {[%emt 0:09:02]} 13. Nc3 {[%emt 0:09:52]} Qxc4 {[%emt 0:32:28]} 14. Qxa7 {[%emt 0:00:08]} Nf6 {[%emt 0:18:30]} 15. a4 {[%emt 0:43:51]} Nd7 {[%emt 0:09:05]} 16. Nb5 {[%emt 0:05:08]} e5 {[%emt 0:07:36]} 17. Qa8+ {[%emt 0:05:37]} Nb8 {[%emt 0:00:30]} 18. Na7+ {[%emt 0:01:23]} Kc7 {[%emt 0:03:04]} 19. Nb5+ {[%emt 0:00:47]} Kc8 {[%emt 0:00:31]} 20. Na7+ {[%emt 0:03:00]} Kc7 {[%emt 0:00:14]} 21. Nb5+ {[%emt 0:00:14]} Kc8 {[%emt 0:00:17]} 22. Na7+ {[%emt 0:00:24]} 1/2-1/2

[Event "ETCC Open 2023"]
[Site "Budva"]
[Date "2023.11.14"]
[Round "4.71"]
[White "Egilstoft, Rogvi"]
[Black "Draganic, Veljko"]
[Result "0-1"]
[ECO "B12"]
[WhiteElo "2254"]
[BlackElo "2294"]
[Annotator "ChessBase"]
[PlyCount "74"]
[EventDate "2023.11.10"]
[EventType "team-tourn"]
[EventCountry "MNE"]
[SourceTitle "playchess.com"]
[Source "ChessBase"]
[SourceQuality "1"]
[WhiteTeam "Faroe Islands"]
[BlackTeam "Montenegro"]
[WhiteTeamCountry "FAI"]
[BlackTeamCountry "MNE"]
[TimeControl "40/5400+30:1800+30"]

1. e4 {[%emt 0:00:07]} c6 {[%emt 0:00:02]} 2. d4 {[%emt 0:01:44]} d5 {[%emt 0:00:05]} 3. e5 {[%emt 0:00:57]} c5 {[%emt 0:00:04]} 4. dxc5 {[%emt 0:01:50]} e6 {[%emt 0:00:06]} 5. a3 {[%emt 0:00:59]} Bxc5 {[%emt 0:00:09]} 6. b4 {[%emt 0:00:24]} Be7 {[%emt 0:00:17]} 7. Nf3 {[%emt 0:00:31]} a5 {[%emt 0:00:06]} 8. b5 {[%emt 0:02:07]} Nd7 {[%emt 0:03:42]} 9. Bd3 {[%emt 0:05:14]} f6 {[%emt 0:00:42]} 10. Bb2 {[%emt 0:04:11]} Nh6 {[%emt 0:00:50]} 11. O-O {[%emt 0:27:50]} Nf7 {[%emt 0:00:50]} 12. exf6 {[%emt 0:01:42]} Bxf6 {[%emt 0:00:19]} 13. Bxf6 {[%emt 0:02:17]} Qxf6 {[%emt 0:00:23]} 14. Nbd2 {[%emt 0:02:20]} e5 {[%emt 0:03:24]} 15. c4 {[%emt 0:15:42]} e4 {[%emt 0:03:27]} 16. Bxe4 {[%emt 0:00:26]} dxe4 {[%emt 0:00:07]} 17. Nxe4 {[%emt 0:00:06]} Qh6 {[%emt 0:01:58]} 18. c5 {[%emt 0:04:50]} O-O {[%emt 0:04:08]} 19. Qb3 {[%emt 0:00:13]} Kh8 {[%emt 0:06:22]} 20. Rfe1 {[%emt 0:12:55]} Nf6 {[%emt 0:12:33]} 21. Nd6 {[%emt 0:00:05]} Nxd6 {[%emt 0:00:53]} 22. cxd6 {[%emt 0:02:04]} Qf4 {[%emt 0:02:09]} 23. Rad1 {[%emt 0:03:51]} a4 {[%emt 0:08:54]} 24. Qc3 {[%emt 0:01:10]} Bg4 {[%emt 0:03:25]} 25. Rd4 {[%emt 0:05:00]} Qf5 {[%emt 0:00:50]} 26. Re5 {[%emt 0:01:43]} Qb1+ {[%emt 0:02:32]} 27. Qe1 {[%emt 0:00:05]} Qb2 {[%emt 0:01:17]} 28. Rb4 {[%emt 0:01:29]} Qxa3 {[%emt 0:01:10]} 29. Ng5 {[%emt 0:01:42]} h6 {[%emt 0:03:07]} 30. h3 {[%emt 0:00:12]} Bd7 {[%emt 0:01:25]} 31. Ne4 {[%emt 0:00:22]} Qd3 {[%emt 0:02:39]} 32. Re7 {[%emt 0:01:35]} Nxe4 {[%emt 0:01:47]} 33. Rbxe4 {[%emt 0:00:10]} Qxd6 {[%emt 0:00:30]} 34. Qe3 {[%emt 0:01:01]} Bxb5 {[%emt 0:03:10]} 35. R4e6 {[%emt 0:00:20]} Qf4 {[%emt 0:00:40]} 36. Qc5 {[%emt 0:00:36]} Rac8 {[%emt 0:02:47]} 37. g3 {[%emt 0:00:24]} Rxc5 {[%emt 0:00:40]} 0-1

[Event "ETCC Open 2023"]
[Site "Budva"]
[Date "2023.11.14"]
[Round "4.72"]
[White "Miletic, Vuk"]
[Black "Rodgaard, John"]
[Result "1/2-1/2"]
[ECO "B13"]
[WhiteElo "2190"]
[BlackElo "2281"]
[Annotator "ChessBase"]
[PlyCount "60"]
[EventDate "2023.11.10"]
[EventType "team-tourn"]
[EventCountry "MNE"]
[SourceTitle "playchess.com"]
[Source "ChessBase"]
[SourceQuality "1"]
[WhiteTeam "Montenegro"]
[BlackTeam "Faroe Islands"]
[WhiteTeamCountry "MNE"]
[BlackTeamCountry "FAI"]
[TimeControl "40/5400+30:1800+30"]

1. d4 {[%emt 0:00:03]} d5 {[%emt 0:00:46]} 2. Nf3 {[%emt 0:00:24]} Nf6 {[%emt 0:05:51]} 3. Bf4 {[%emt 0:00:38]} c5 {[%emt 0:01:53]} 4. e3 {[%emt 0:00:27]} cxd4 {[%emt 0:02:09]} 5. exd4 {[%emt 0:00:29]} Bf5 {[%emt 0:02:54]} 6. c3 {[%emt 0:01:30]} a6 {[%emt 0:01:52]} 7. Qb3 {[%emt 0:14:57]} Ra7 {[%emt 0:01:00]} 8. h3 {[%emt 0:03:50]} e6 {[%emt 0:23:19]} 9. Ne5 {[%emt 0:29:22]} Nbd7 {[%emt 0:21:09]} 10. Nd2 {[%emt 0:10:54]} Nxe5 {[%emt 0:12:53]} 11. Bxe5 {[%emt 0:03:07]} Be7 {[%emt 0:04:08]} 12. Be2 {[%emt 0:01:35]} O-O {[%emt 0:01:07]} 13. O-O {[%emt 0:01:25]} Ne4 {[%emt 0:01:43]} 14. Nxe4 {[%emt 0:06:35]} Bxe4 {[%emt 0:00:03]} 15. a4 {[%emt 0:00:43]} Qd7 {[%emt 0:01:14]} 16. Rfe1 {[%emt 0:03:47]} Raa8 {[%emt 0:01:10]} 17. Bf1 {[%emt 0:03:12]} Rac8 {[%emt 0:01:41]} 18. a5 {[%emt 0:02:29]} Rfe8 {[%emt 0:02:12]} 19. Qd1 {[%emt 0:02:08]} f6 {[%emt 0:01:20]} 20. Bg3 {[%emt 0:00:56]} Bg6 {[%emt 0:00:28]} 21. Re3 {[%emt 0:00:27]} Bf8 {[%emt 0:02:33]} 22. Qe1 {[%emt 0:03:31]} Bf7 {[%emt 0:01:59]} 23. Bd3 {[%emt 0:00:11]} Bg6 {[%emt 0:00:25]} 24. Be2 {[%emt 0:02:28]} Bd6 {[%emt 0:01:50]} 25. Bxd6 {[%emt 0:04:33]} Qxd6 {[%emt 0:00:02]} 26. Bg4 {[%emt 0:00:33]} Bf7 {[%emt 0:00:06]} 27. Qe2 {[%emt 0:01:15]} Rc7 {[%emt 0:02:39]} 28. Re1 {[%emt 0:01:10]} Rce7 {[%emt 0:00:11]} 29. Qd1 {[%emt 0:01:07]} Qc7 {[%emt 0:02:39]} 30. Qa4 {[%emt 0:00:23]} Qd6 {[%emt 0:00:20]} 1/2-1/2

[Event "ETCC Open 2023"]
[Site "Budva"]
[Date "2023.11.14"]
[Round "4.73"]
[White "Saraci, Nderim"]
[Black "Muir, Andrew J"]
[Result "1-0"]
[ECO "D02"]
[WhiteElo "2466"]
[BlackElo "2227"]
[Annotator "ChessBase"]
[PlyCount "109"]
[EventDate "2023.11.10"]
[EventType "team-tourn"]
[EventCountry "MNE"]
[SourceTitle "playchess.com"]
[Source "ChessBase"]
[SourceQuality "1"]
[WhiteTeam "Kosovo"]
[BlackTeam "Scotland"]
[WhiteTeamCountry "KOS"]
[BlackTeamCountry "SCO"]
[TimeControl "40/5400+30:1800+30"]

1. d4 {[%emt 0:00:07]} d5 {[%emt 0:00:09]} 2. Nf3 {[%emt 0:01:28]} Nf6 {[%emt 0:00:14]} 3. Bf4 {[%emt 0:02:38]} c5 {[%emt 0:00:30]} 4. e3 {[%emt 0:01:00]} Nc6 {[%emt 0:00:41]} 5. Nbd2 {[%emt 0:00:11]} e6 {[%emt 0:01:21]} 6. c3 {[%emt 0:03:58]} cxd4 {[%emt 0:01:16]} 7. exd4 {[%emt 0:02:18]} Nh5 {[%emt 0:00:39]} 8. Bg5 {[%emt 0:04:24]} f6 {[%emt 0:01:24]} 9. Be3 {[%emt 0:02:03]} Bd6 {[%emt 0:01:27]} 10. Bb5 {[%emt 0:10:30]} O-O {[%emt 0:02:02]} 11. O-O {[%emt 0:02:43]} g6 {[%emt 0:13:22]} 12. c4 {[%emt 0:06:17]} Bd7 {[%emt 0:05:16]} 13. cxd5 {[%emt 0:12:46]} exd5 {[%emt 0:00:16]} 14. Qb3 {[%emt 0:01:25]} Ne7 {[%emt 0:03:33]} 15. a4 {[%emt 0:06:50]} Bxb5 {[%emt 0:10:48]} 16. axb5 {[%emt 0:00:13]} Kh8 {[%emt 0:00:24]} 17. Nb1 {[%emt 0:01:39]} Nf4 {[%emt 0:37:55]} 18. Bxf4 {[%emt 0:01:23]} Bxf4 {[%emt 0:02:17]} 19. Nc3 {[%emt 0:00:07]} Qd7 {[%emt 0:02:35]} 20. Rfd1 {[%emt 0:08:56]} Rfc8 {[%emt 0:01:38]} 21. Ne1 {[%emt 0:02:43]} Rc4 {[%emt 0:01:27]} 22. Nc2 {[%emt 0:08:39]} Nf5 {[%emt 0:02:13]} 23. Rd3 {[%emt 0:05:02]} Bc7 {[%emt 0:02:29]} 24. Rad1 {[%emt 0:06:16]} Bb6 {[%emt 0:02:04]} 25. g4 {[%emt 0:02:09]} Nh4 {[%emt 0:00:40]} 26. Ne3 {[%emt 0:03:28]} Nf3+ {[%emt 0:01:00]} 27. Kg2 {[%emt 0:00:40]} Nxd4 {[%emt 0:00:50]} 28. Qa2 {[%emt 0:00:43]} Rac8 {[%emt 0:05:15]} 29. h3 {[%emt 0:01:38]} Qe6 {[%emt 0:00:40]} 30. Nxc4 {[%emt 0:00:30]} Rxc4 {[%emt 0:00:17]} 31. Re3 {[%emt 0:00:51]} Qd6 {[%emt 0:00:15]} 32. Ne2 {[%emt 0:01:58]} Nxb5 {[%emt 0:00:28]} 33. Qxc4 {[%emt 0:00:50]} dxc4 {[%emt 0:00:05]} 34. Rxd6 {[%emt 0:00:05]} Nxd6 {[%emt 0:00:36]} 35. Re6 {[%emt 0:00:17]} Bc5 {[%emt 0:00:41]} 36. Nf4 {[%emt 0:00:48]} f5 {[%emt 0:00:49]} 37. Re7 {[%emt 0:00:44]} a5 {[%emt 0:00:35]} 38. Ne6 {[%emt 0:00:35]} Bb4 {[%emt 0:00:28]} 39. g5 {[%emt 0:00:27]} a4 {[%emt 0:00:16]} 40. Rd7 {[%emt 0:00:33]} Kg8 {[%emt 0:00:03]} 41. Rg7+ {[%emt 0:30:26]} Kh8 {[%emt 0:30:04]} 42. Rd7 {[%emt 0:00:00]} Kg8 {[%emt 0:00:00]} 43. Nf4 {[%emt 0:00:00]} a3 {[%emt 0:00:00]} 44. bxa3 {[%emt 0:00:00]} Bxa3 {[%emt 0:00:00]} 45. Nd5 {[%emt 0:00:00]} b5 {[%emt 0:00:00]} 46. Nf6+ {[%emt 0:00:00]} Kf8 {[%emt 0:00:00]} 47. Nxh7+ {[%emt 0:00:00]} Ke8 {[%emt 0:00:00]} 48. Nf6+ {[%emt 0:00:00]} Kf8 {[%emt 0:00:00]} 49. h4 {[%emt 0:00:00]} Ne4 {[%emt 0:00:00]} 50. Nd5 {[%emt 0:00:00]} Bc5 {[%emt 0:00:00]} 51. h5 {[%emt 0:00:00]} gxh5 {[%emt 0:00:00]} 52. g6 {[%emt 0:00:00]} Bd4 {[%emt 0:00:38]} 53. Rf7+ {[%emt 0:00:00]} Ke8 {[%emt 0:00:22]} 54. Nc7+ {[%emt 0:00:00]} Kd8 {[%emt 0:00:07]} 55. Ne6+ {[%emt 0:00:00]} 1-0